Cogmind - Beta 15 @@@ ROGUE MODE // 2025.05.14 @ 12:15:57 Player: celerysam Result: Destroyed by Q2-9XQ(R) with Subdweller Beam Cannon Performance ------------- Evolutions (0) 0 Regions Visited (2) 400 Robots Destroyed (6) 30 Value Destroyed (204) 204 Prototype IDs (0) 0 Alien Tech Used (0) 0 Bonus (0) 0 TOTAL SCORE: 634 Bonus ------- None Cogmind --------- Core Integrity 0/250 Matter 217/300 Energy 265/265 System Corruption 0% Temperature Cool (9) Movement Core (900) Ox17 Location -10/Subcaves Parts ------- > --- POWER (1) -------- Reinforced Ion Engine > --- PROPULSION (2) --- (None) > --- UTILITY (2) ------ High-capacity Storage Unit > --- WEAPON (2) ------- Maul > --- INVENTORY (20) --- Light Ion Engine Reinforced Ion Engine VTOL Module VTOL Module VTOL Module VTOL Module Small Storage Unit Assault Rifle Datajack Welding Torch Maul Peak State ------------ > --- POWER ------------ Reinforced Ion Engine > --- PROPULSION ------- Compact Wheel Compact Wheel > --- UTILITY ---------- High-capacity Storage Unit > --- WEAPON ----------- Small Laser Small Laser > --- INVENTORY -------- Light Ion Engine Reinforced Ion Engine Light Treads Light Treads VTOL Module VTOL Module VTOL Module VTOL Module Small Storage Unit Assault Rifle Grenade Launcher Datajack Welding Torch Maul [Rating: 9] Favorites ----------- Power Reinforced Ion Engine Engine Reinforced Ion Engine Propulsion Compact Wheel Treads Light Treads Leg Aluminum Leg Wheel Compact Wheel Utility High-capacity Storage Unit Storage High-capacity Storage Unit Weapon Small Laser Energy Gun Small Laser Launcher Grenade Launcher Impact Weapon Maul Build | -11 -10 -10 ------- Run | Yrd Mat Sub Slots Evolved . | . . . Power . | . . . Propulsion . | . . . Utility . | . . . Weapon . | . . . Parts Attached 14 | 6 4 4 Power 2 | 1 1 . Engine 2 | 1 1 . Core . | . . . Reactor . | . . . Propulsion 6 | 2 2 2 Treads 2 | . . 2 Leg 2 | 2 . . Wheel 2 | . 2 . Hover . | . . . Flight . | . . . Utility 2 | 1 1 . Device . | . . . Storage 2 | 1 1 . Processor . | . . . Hackware . | . . . Protection . | . . . Artifact . | . . . Weapon 4 | 2 . 2 Energy Gun 2 | 2 . . Energy Cannon . | . . . Ballistic Gun . | . . . Ballistic Cannon . | . . . Launcher 1 | . . 1 Special Weapon . | . . . Impact Weapon 1 | . . 1 Slashing Weapon . | . . . Piercing Weapon . | . . . Special Melee Weapon . | . . . Unidentified Prototypes . | . . . Parts Lost 7 | . . 7 Power . | . . . Propulsion 4 | . . 4 Utility . | . . . Weapon 3 | . . 3 Highest Loss Streak 5 | . . 5 To Critical Strikes . | . . . Average Backups 9 | 4 9 12 Power 1 | . 1 2 Propulsion 4 | 3 4 4 Utility . | . . 1 Weapon 2 | . 2 2 Tool/Special . | . . . Unused Backups 10 | . . 10 Power 2 | . . 2 Propulsion 4 | . . 4 Utility . | . . . Weapon 2 | . . 2 Tool/Special 2 | . . 2 Average Slot Usage (%) 75 | . 85 63 Engine 14 | . 14 14 Treads 6 | . . 13 Leg 5 | . 10 . Wheel 11 | . 17 4 Storage 14 | . 14 14 Energy Gun 17 | . 28 6 Impact Weapon 4 | . . 10 Peak Build Rating 9 | 6 9 9 Average Rating 6 | 3 7 7 On Entrance 5 | . 6 9 Naked Turns . | . . . Heaviest Build 53 | 10 52 53 Greatest Support 40 | 20 32 40 Greatest Overweight (x) 2 | . 1 2 Average Overweight (x) . | . . 1 Largest Inventory Capacity 20 | 8 20 20 Average Capacity 15 | 6 13 20 Most Carried 15 | 6 15 15 Average Carried 9 | 4 9 11 Final Capacity 20 | 8 20 20 Final Carried 15 | 6 15 11 Class Distribution -------------------- 100% | Mutant Dominant Class ---------------- Mutant | -10/Materials Mutant | -10/Subcaves Resources | -11 -10 -10 ----------- Run | Yrd Mat Sub Matter Collected 252 | 216 24 12 Remotely . | . . . Salvage Created 150 | . 97 53 Parts 8 | . 7 1 Haulers Intercepted . | . . . Recyclers Shooed . | . . . Parts Field Recycled . | . . . Retrieved Matter . | . . . Parts Self-Destructed . | . . . Prevented . | . . . Kills | -11 -10 -10 ------- Run | Yrd Mat Sub Combat Hostiles Destroyed 5 | . 2 3 Melee 1 | . . 1 Guns 2 | . 2 . AOE 1 | . . 1 Classes Destroyed 3 | . 2 1 Watcher 1 | . 1 . Grunt 2 | . 2 . Subdweller 3 | . . 3 Best Kill Streak 3 | . 3 1 Combat Bots Only 2 | . 2 1 Max Kills in Single Turn 1 | . 1 1 Gunslinging . | . . . Exploded 1 | . . 1 Melee 1 | . . 1 Uniques/NPCs Destroyed . | . . . Combat | -11 -10 -10 -------- Run | Yrd Mat Sub Hostile Shots Fired 67 | . 12 55 Missed 16 | . 2 14 Hits 51 | . 10 41 Projectile 51 | . 10 41 Critical Strikes 2 | . . 2 Damage Taken 1083 | . 111 972 Core 259 | . . 259 Absorbed by Shields . | . . . Core Remaining (%) 100 | 100 . . Volleys Fired 22 | . 12 10 Largest 2 | . 2 2 Hottest 80 | . 80 80 Shots Fired 44 | . 24 20 Gun 41 | . 24 17 Cannon . | . . . Launcher 3 | . . 3 Special . | . . . Kinetic . | . . . Thermal 41 | . 24 17 Explosive 3 | . . 3 Electromagnetic . | . . . Robot Hit Streak 11 | . 4 11 Robot Miss Streak 2 | . 2 1 Penetration Max . | . . . Secondary Targets 1 | . 1 . Max Gunslinging Chain 1 | . 1 . Shots Hit Robots 34 | . 13 21 Core Hits 7 | . 5 2 Critical Kills . | . . . Critical Parts Destroyed 1 | . . 1 Critical Strikes 1 | . . 1 Smash 1 | . . 1 Melee Attacks 8 | . . 8 Impact 8 | . . 8 Slashing . | . . . Piercing . | . . . Sneak Attacks . | . . . Combat Hostiles . | . . . Follow-up Attacks . | . . . Damage Inflicted 625 | . 144 481 Guns 154 | . 144 10 Cannons . | . . . Explosions 241 | . . 241 Melee 230 | . . 230 Ramming . | . . . Kinetic . | . . . Thermal 154 | . 144 10 Explosive 241 | . . 241 Electromagnetic . | . . . Impact 230 | . . 230 Slashing . | . . . Piercing . | . . . Highest Corruption . | . . . Average Corruption . | . . . Corruption Purged . | . . . Corruption Blocked . | . . . Overload Shots . | . . . Overflow Damage 43 | . . 43 Projectiles . | . . . Explosions 7 | . . 7 Melee 36 | . . 36 Knockbacks 2 | . . 2 Impact 1 | . . 1 Kinetic . | . . . Secondary 1 | . . 1 Self-Inflicted Damage 75 | . . 75 Shots 3 | . . 3 Rammed . | . . . Targets Rammed . | . . . Kicked . | . . . Crushed . | . . . Highest Temperature 300 | . 300 . Average Temperature 121 | . 121 . Received Heat Transfer 228 | . 60 168 Siege Activations . | . . . Martial Activations . | . . . Shielding Activations . | . . . Robots Disrupted . | . . . Combat Hostiles . | . . . Robots Corrupted 1 | . . 1 Combat Hostiles 1 | . . 1 Parts Fried 1 | . . 1 Impact Corruptions 2 | . . 2 Robots Melted . | . . . Combat Hostiles . | . . . Parts Melted . | . . . Heat Transferred 350 | . 325 25 Parts Sabotaged . | . . . Parts Stolen . | . . . Parts Stripped . | . . . Power Chain Reactions . | . . . Alert | -11 -10 -10 ------- Run | Yrd Mat Sub Maximum Alert Level . | . . . Low Security (%) 100 | 100 100 . Level 1 . | . . . Level 2 . | . . . Level 3 . | . . . Level 4 . | . . . Level 5 . | . . . High Security . | . . . Max Security . | . . . Peak Influence 40 | . 40 . Initial . | . . . Average 6 | . 7 . Influence Increases 57 | . 57 . Destroy 0b10 Robot/C 40 | . 40 . Destroy 0b10 Robot/NC 5 | . 5 . Destroy Leader 12 | . 12 . Influence Decreases 57 | . 37 20 Entered New Map 10 | . . 10 Time Decay 37 | . 37 . Lost Part 10 | . . 10 Squads Dispatched 2 | . 2 . Investigation 1 | . 1 . Extermination . | . . . Reinforcement 1 | . 1 . Assault . | . . . Garrison . | . . . Intercept . | . . . Searches Triggered . | . . . Construction Impeded . | . . . Haulers Reinforced . | . . . Active Scanning Responses . | . . . Cargo Convoy Interrupts . | . . . Stealth | -11 -10 -10 --------- Run | Yrd Mat Sub Distress Signals 1 | . 1 . Communications Jammed . | . . . Distress Signals . | . . . Times Spotted 9 | . 5 4 Peak Tracking Total 2 | . 2 2 Tactical Retreats . | . . . Traps | -11 -10 -10 ------- Run | Yrd Mat Sub Traps Triggered 1 | . 1 . Indirectly . | . . . Trap Hack Attempts . | . . . Triggered . | . . . Disarmed . | . . . Reprogrammed . | . . . Reused . | . . . Traps Extracted . | . . . Installed . | . . . Triggered . | . . . Machines | -11 -10 -10 ---------- Run | Yrd Mat Sub Machines Disabled . | . . . Max in Single Turn . | . . . Machines Repaired . | . . . Machines Dismantled . | . . . Machines Sabotaged . | . . . Overloaded Fab Kills . | . . . Hacking | -11 -10 -10 --------- Run | Yrd Mat Sub Machines Accessed . | . . . Terminals . | . . . Fabricators . | . . . Repair Stations . | . . . Recycling Units . | . . . Scanalyzers . | . . . Garrison Access . | . . . Total Hacks . | . . . Successful . | . . . Failed . | . . . Catastrophic . | . . . Database Lockouts . | . . . Manual . | . . . Terminals . | . . . Fabricators . | . . . Repair Stations . | . . . Recycling Units . | . . . Scanalyzers . | . . . Garrison Access . | . . . Terminal Hacks . | . . . Fabricator Hacks . | . . . Repair Station Hacks . | . . . Recycling Unit Hacks . | . . . Scanalyzer . | . . . Garrison Access Hacks . | . . . Unauthorized Hacks . | . . . Terminals . | . . . Fabricators . | . . . Repair Stations . | . . . Recycling Units . | . . . Scanalyzers . | . . . Garrison Access . | . . . Data Cores Recovered . | . . . Used . | . . . Hacking Detections . | . . . Full Trace Events . | . . . Feedback Events . | . . . Feedback Blocked . | . . . Robot Schematics Acquired . | . . . Robots Built . | . . . Authchips . | . . . Time . | . . . Total Robot Build Rating . | . . . Part Schematics Acquired . | . . . Parts Built . | . . . Authchips . | . . . Time . | . . . Total Part Build Rating . | . . . Parts Repaired . | . . . Time . | . . . Parts Recycled . | . . . Recycled Matter . | . . . Retrieved Matter . | . . . Retrieved Components . | . . . Parts Scanalyzed . | . . . Part Schematics Acquired . | . . . Parts Damaged . | . . . Bothacking | -11 -10 -10 ------------ Run | Yrd Mat Sub Used RIF Installer . | . . . Robots Hacked . | . . . Non-combat . | . . . Combat . | . . . Robot Hacks Applied . | . . . Relay Couplers Released . | . . . Fabnet Peak Effective % . | . . . Robots Rewired . | . . . Allies Hacked . | . . . Hacks Repelled . | . . . Allies | -11 -10 -10 -------- Run | Yrd Mat Sub Total Allies . | . . . Largest Group . | . . . Highest-Rated Group . | . . . Highest-Rated Ally . | . . . Total Orders . | . . . Ally Attacks . | . . . Total Damage . | . . . Kills . | . . . Allies Corrupted . | . . . Allies Melted . | . . . Intel | -11 -10 -10 ------- Run | Yrd Mat Sub Active Infowar (turns) . | . . . Robot Analysis Total . | . . . Derelict Logs Recovered . | . . . Drone Launches . | . . . Drone Recoveries . | . . . Exploration | -11 -10 -10 ------------- Run | Yrd Mat Sub Turns Passed 490 | 67 225 198 Spaces Moved 255 | 53 151 51 Core 15 | 15 . . Treads 46 | . . 46 Legs 91 | 38 53 . Wheels 103 | . 98 5 Hover . | . . . Flight . | . . . Fastest Speed 50 | 50 100 115 Average Speed 143 | 100 113 277 Slowest Speed 320 | 120 120 320 Overloaded Moves . | . . . Propulsion Burnouts . | . . . Robots Hopped . | . . . Potential Cave-ins 1 | . . 1 Cave-ins Triggered . | . . . Exploration Rate (%) 9 | 4 16 8 Regions Visited 2 Branch Regions 1 Pre-discovered Areas . | . . . Known Exits Taken . | . . . Unknown Exits Taken 2 | 1 1 . Scrap Searched . | . . . Spaces Dug . | . . . Terrain Destroyed 21 | . . 21 Melee . | . . . Projectile . | . . . AOE 21 | . . 21 Terrain Rammed . | . . . Walls Destroyed . | . . . Machines Disabled . | . . . Actions | -11 -10 -10 --------- Run | Yrd Mat Sub Total 318 | 64 181 73 Wait . | . . . Move 253 | 52 150 51 Hop . | . . . Pick Up 17 | 6 11 . Fast Attach 6 | 6 . . Attach 5 | . 1 4 Detach 1 | . 1 . Swap 3 | . 3 . Drop 3 | . 3 . Fire 22 | . 12 10 Melee 8 | . . 8 Ram . | . . . Kick . | . . . Crush . | . . . Escape Stasis . | . . . Rewire . | . . . Trap . | . . . Miscellaneous . | . . . Route ------- -11/Scrapyard -10/Materials -10/Subcaves History --------- Turn | Location | Event 3 | -11/Scrapyard | Discovered new exit (range 15) 68 | -11/Scrapyard | Entered Materials 285 | -10/Materials | Discovered new exit (range 8) 293 | -10/Materials | Entered Subcaves 297 | -10/Subcaves | Ambushed by Subdwellers from Twisted Machinery 317 | -10/Subcaves | Build established: Mutant 324 | -10/Subcaves | Ambushed by Subdweller buried in earth 359 | -10/Subcaves | Core integrity fell below 50% 367 | -10/Subcaves | Lost 5 parts (2n3w) 389 | -10/Subcaves | Core integrity fell below 20% 491 | -10/Subcaves | Destroyed by Q2-9XQ(R) with Subdweller Beam Cannon Last Messages --------------- 00355_ Destroyed Disposable Heat Sink. 00355_ AR-10B(R) system corrupted by crushing effect. 00355_ AR-10B(R) knocked back. 00356_ AR-10B(R) system terminally corrupted. 00356_ Sub. Power Source fried. 00360_ Acquired 12 matter. 00362_ Subatomizers dissect the Sub. Optics. 00374_ Lgt. Treads destroyed. 00385_ LB-JR5(R) suffers critical hit (Smash). 00385_ Destroyed Sub. Monowheel. 00385_ LB-JR5(R) system corrupted by crushing effect. 00386_ Subatomizers dissect the Sub. Optics. 00388_ LB-JR5(R) destroyed. 00397_ Subatomizers dissect the Sub. Optics, destroying it. 00491_ Lgt. Treads destroyed. Map ----- +----------------------------------------------------+ | ## %## #????????????????????????????????? | | ?# " "## ##????????????????????????????????? | | # """" " " #?????????????????????????????????? | | # " ## ## #?????????????????????????????????? | | ## " ###### #?????????????????????????????????? | | ?##"##?### #?????????????????????????????????? | | ??###?## #?????????????????????????????????? | | ??????# ##????????????????????????????????? | | ??????## ##???????????????????????????????? | | ???###?## ##??????????????????????????????? | | ??## ## #####??????????????????????????? | | ??# #??????????????????????????? | | ???## ##??????????????????????????? | | ????## ##???????????????????????????? | | ?????## ##???????????????????????????? | | ??????# ##??????????????????????????? | | ??????# ### #??????????????????????????? | | ??????##??## #??????????????????????????? | | ???????????# ### #??????????????????????????? | | ??????????# ##?# #??????????????????????????? | | ??????????### ?### #??????????????????????????? | | ????????????# ## # ###?##?????????????????????? | | ????????????# # ## #?????????????????????? | | ????????????# # #?????????????????????? | | ???????????? # #?????????????????????? | | ???????????? ### @ #?????????????????????? | | ??????????? ??## R #?????????????????????? | | ??????????? ????## #?????????????????????? | | ?????????? ?????# ????????????????????? | | ?????????????????# ## ???????????????????? | | ????????????????# ?# #??????????????????? | | ??????????????? ? ##??????????????????? | | ????????????? ###########???????????????????? | | ?????????????######??????????????????????????????? | | ?????????????????????????????????????????????????? | | ?????????????????????????????????????????????????? | | ?????????????????????????????????????????????????? | | ?????????????????????????????????????????????????? | | ?????????????????????????????????????????????????? | | ?????????????????????????????????????????????????? | | ?????????????????????????????????????????????????? | | ?????????????????????????????????????????????????? | | ?????????????????????????????????????????????????? | | ?????????????????????????????????????????????????? | | ?????????????????????????????????????????????????? | | ?????????????????????????????????????????????????? | | ?????????????????????????????????????????????????? | | ?????????????????????????????????????????????????? | | | | | +----------------------------------------------------+ Best States ------------- Heat Dissipation 25 Energy Generation 12 Energy Capacity 265 Matter Stores 256 Matter Capacity 300 Sight Range 16 Terrain Scan Density 10 Evasion (%) 55 Recoil Reduction 2 Item Schematics ----------------- None Robot Schematics ------------------ None Fabricated ------------ Nothing Repaired ---------- Nothing Alien Tech Used ----------------- None Achievements -------------- None Challenges ------------ None Game ------ Seed MassFortressGravjet Manual? 0 Play Time 00:05:23 Cumulative 250.6 hours Start 2025.05.14 @ 12:11:15 End 2025.05.14 @ 12:15:57 Sessions 1 Manual Loads 0 Difficulty Rogue Special Mode None Game No. 371 Rogue 371 Adventurer 0 Explorer 0 Win Type - Total 1 Types 1/0/0/0/0/0/0/0/0/0 Lore% 59 Gallery% 61 Achievement% 43 Wizard Run 0 Options --------- Layout 1 ASCII 0 Keyboard 0 Movement Mouse Keybinds 0 Fullscreen 2 Font 24/Smallcaps Map View 50x35 Zoom Use 0% Tactical HUD 1 Map Filters NONE Filters NONE Steam 1 RUN: fdd00c89-086a-4dfa-baf5-c97a650b6bf3